[Event "GER-chW Blitz 2019"]
[Site "Magdeburg"]
[Date "2019.05.25"]
[Round "23.9"]
[White "Kreismann, Franziska"]
[Black "Hofmann, Karina"]
[Result "0-1"]
[ECO "A40"]
[WhiteElo "1589"]
[BlackElo "1700"]
[Annotator "NA"]
[PlyCount "80"]
[EventDate "2019.05.25"]
[EventType "tourn"]
[EventCountry "GER"]
[SourceTitle "playchess.com"]
[Source "ChessBase"]
[SourceQuality "1"]
[TimeControl "180+2"]

1. d4 {[%emt 0:00:00]} b6 {[%emt 0:00:00]} 2. e4 {[%emt 0:00:01]} Bb7 {[%emt 0:00:00]} 3. Nc3 {[%emt 0:00:02]} g6 {[%emt 0:00:02]} 4. Nf3 {[%emt 0:00:01]} Bg7 {[%emt 0:00:01]} 5. Bd3 {[%emt 0:00:02]} d6 {[%emt 0:00:09]} 6. Bd2 {[%emt 0:00:05]} Nd7 {[%emt 0:00:01]} 7. d5 {[%emt 0:00:03]} Nc5 {[%emt 0:00:07]} 8. Qe2 {[%emt 0:00:04]} e6 {[%emt 0:00:02]} 9. O-O-O {[%emt 0:00:09]} Ne7 {[%emt 0:00:02]} 10. dxe6 {[%emt 0:00:06]} fxe6 {[%emt 0:00:02]} 11. Rhe1 {[%emt 0:00:23]} e5 {[%emt 0:00:03]} 12. Be3 {[%emt 0:00:11]} Nxd3+ {[%emt 0:00:06]} 13. Rxd3 {[%emt 0:00:11]} Qd7 {[%emt 0:00:02]} 14. Kb1 {[%emt 0:00:07]} O-O-O {[%emt 0:00:06]} 15. Bg5 {[%emt 0:00:06]} Rhf8 {[%emt 0:00:04]} 16. Bxe7 {[%emt 0:00:02]} Qxe7 {[%emt 0:00:02]} 17. Nd5 {[%emt 0:00:17]} Bxd5 {[%emt 0:00:03]} 18. exd5 {[%emt 0:00:02]} Kb7 {[%emt 0:00:02]} 19. Ra3 {[%emt 0:00:11]} a5 {[%emt 0:00:05]} 20. Qb5 {[%emt 0:00:07]} Qd7 {[%emt 0:00:04]} 21. Rxa5 {[%emt 0:00:04]} Qxb5 {[%emt 0:00:02]} 22. Rxb5 {[%emt 0:00:01]} Rf4 {[%emt 0:00:09]} 23. a4 {[%emt 0:00:43]} h6 {[%emt 0:00:03]} 24. a5 {[%emt 0:00:00]} Ra4 {[%emt 0:00:07]} 25. axb6 {[%emt 0:00:03]} cxb6 {[%emt 0:00:02]} 26. Rb3 {[%emt 0:00:04]} Rda8 {[%emt 0:00:05]} 27. Kc1 {[%emt 0:00:02]} e4 {[%emt 0:00:18]} 28. Nd2 {[%emt 0:00:07]} Ra1+ {[%emt 0:00:02]} 29. Nb1 {[%emt 0:00:07]} h5 {[%emt 0:00:12]} 30. Rxe4 {[%emt 0:00:07]} Bh6+ {[%emt 0:00:02]} 31. f4 {[%emt 0:00:04]} Rc8 {[%emt 0:00:06]} 32. Reb4 {[%emt 0:00:06]} Ra6 {[%emt 0:00:10]} 33. Na3 {[%emt 0:00:06]} Rc5 {[%emt 0:00:07]} 34. Rd3 {[%emt 0:00:13]} Bg7 {[%emt 0:00:16]} 35. Rc4 {[%emt 0:00:05]} Raa5 {[%emt 0:00:19]} 36. Rxc5 {[%emt 0:00:01]} bxc5 {[%emt 0:00:07]} 37. c4 {[%emt 0:00:04]} Ra4 {[%emt 0:00:06]} 38. Rb3+ {[%emt 0:00:01]} Kc7 {[%emt 0:00:01]} 39. Nb5+ {[%emt 0:00:01]} Kd7 {[%emt 0:00:02]} 40. Re3 {[%emt 0:00:02]} Rxc4+ {[%emt 0:00:04] Re6 [%clk 0:00:10]} 0-1

[Event "GER-chW Blitz 2019"]
[Site "Magdeburg"]
[Date "2019.05.25"]
[Round "23.10"]
[White "Daemering, Katrin"]
[Black "Siegl, Melina"]
[Result "0-1"]
[ECO "A04"]
[WhiteElo "2003"]
[BlackElo "2029"]
[Annotator "NA"]
[PlyCount "84"]
[EventDate "2019.05.25"]
[EventType "tourn"]
[EventCountry "GER"]
[SourceTitle "playchess.com"]
[Source "ChessBase"]
[SourceQuality "1"]
[TimeControl "180+2"]

1. Nf3 {[%emt 0:00:00]} d6 {[%emt 0:00:02]} 2. g3 {[%emt 0:00:00]} e5 {[%emt 0:00:02]} 3. d3 {[%emt 0:00:01]} f5 {[%emt 0:00:02]} 4. Bg2 {[%emt 0:00:04]} Nf6 {[%emt 0:00:01]} 5. Nc3 {[%emt 0:00:02]} g6 {[%emt 0:00:02]} 6. e4 {[%emt 0:00:08]} c6 {[%emt 0:00:06]} 7. exf5 {[%emt 0:00:09]} Bxf5 {[%emt 0:00:02]} 8. h3 {[%emt 0:00:19]} Bg7 {[%emt 0:00:16]} 9. Be3 {[%emt 0:00:07]} Na6 {[%emt 0:00:10]} 10. Qd2 {[%emt 0:00:03]} h6 {[%emt 0:00:08]} 11. g4 {[%emt 0:00:10]} Be6 {[%emt 0:00:10]} 12. g5 {[%emt 0:00:06]} Ng8 {[%emt 0:00:20]} 13. O-O-O {[%emt 0:00:11]} h5 {[%emt 0:00:03]} 14. Nh4 {[%emt 0:00:08]} Ne7 {[%emt 0:00:02]} 15. Ne4 {[%emt 0:00:05]} Bf7 {[%emt 0:00:21]} 16. d4 {[%emt 0:00:02]} Nf5 {[%emt 0:00:11]} 17. Nxf5 {[%emt 0:00:15]} gxf5 {[%emt 0:00:02]} 18. Nf6+ {[%emt 0:00:21]} Bxf6 {[%emt 0:00:01]} 19. gxf6 {[%emt 0:00:01]} e4 {[%emt 0:00:02]} 20. Bg5 {[%emt 0:00:05]} Qb6 {[%emt 0:00:08]} 21. a3 {[%emt 0:00:09]} O-O-O {[%emt 0:00:09]} 22. Qc3 {[%emt 0:00:04]} Nc7 {[%emt 0:00:04]} 23. h4 {[%emt 0:00:14]} Nb5 {[%emt 0:00:14]} 24. Qb4 {[%emt 0:00:13]} c5 {[%emt 0:00:21]} 25. dxc5 {[%emt 0:00:06]} dxc5 {[%emt 0:00:01]} 26. Qe1 {[%emt 0:00:15]} Nd4 {[%emt 0:00:15]} 27. Bh3 {[%emt 0:00:13]} Qe6 {[%emt 0:00:14]} 28. Qa5 {[%emt 0:00:13]} Qc4 {[%emt 0:00:15]} 29. Rxd4 {[%emt 0:00:05]} cxd4 {[%emt 0:00:04]} 30. Bxf5+ {[%emt 0:00:03]} Kb8 {[%emt 0:00:00]} 31. Bxe4 {[%emt 0:00:03]} Qa2 {[%emt 0:00:03]} 32. Qe5+ {[%emt 0:00:03]} Ka8 {[%emt 0:00:02]} 33. Qc7 {[%emt 0:00:03]} Rb8 {[%emt 0:00:03]} 34. Bf4 {[%emt 0:00:01]} Qa1+ {[%emt 0:00:02]} 35. Kd2 {[%emt 0:00:01]} Qxb2 {[%emt 0:00:01]} 36. Rc1 {[%emt 0:00:03]} Qxa3 {[%emt 0:00:03]} 37. Ke1 {[%emt 0:00:04]} Rhc8 {[%emt 0:00:03]} 38. Qxf7 {[%emt 0:00:03]} Re8 {[%emt 0:00:05]} 39. f3 {[%emt 0:00:02]} Rxe4+ 40. fxe4 Qc3+ 41. Kf2 d3 42. cxd3 Qb2+ 0-1

[Event "GER-chW Blitz 2019"]
[Site "Magdeburg"]
[Date "2019.05.25"]
[Round "23.11"]
[White "Sieber, Fiona"]
[Black "Muetsch, Annmarie"]
[Result "1-0"]
[ECO "B47"]
[WhiteElo "2250"]
[BlackElo "2266"]
[Annotator "NA"]
[PlyCount "57"]
[EventDate "2019.05.25"]
[EventType "tourn"]
[EventCountry "GER"]
[SourceTitle "playchess.com"]
[Source "ChessBase"]
[SourceQuality "1"]
[TimeControl "180+2"]

1. e4 {[%emt 0:00:00]} c5 {[%emt 0:00:00]} 2. Nf3 {[%emt 0:00:00]} e6 {[%emt 0:00:00]} 3. d4 {[%emt 0:00:01]} cxd4 {[%emt 0:00:00]} 4. Nxd4 {[%emt 0:00:01]} Nc6 {[%emt 0:00:01]} 5. Nc3 {[%emt 0:00:03]} Qc7 {[%emt 0:00:00]} 6. f4 {[%emt 0:00:09]} a6 {[%emt 0:00:02]} 7. Nxc6 {[%emt 0:00:02]} Qxc6 {[%emt 0:00:02]} 8. Bd3 {[%emt 0:00:03]} b5 {[%emt 0:00:03]} 9. Qe2 {[%emt 0:00:03]} Bb7 {[%emt 0:00:03]} 10. Bd2 {[%emt 0:00:02]} Bc5 {[%emt 0:00:02]} 11. O-O-O {[%emt 0:00:04]} Ne7 {[%emt 0:00:01]} 12. a3 {[%emt 0:00:01]} O-O {[%emt 0:00:04]} 13. Qh5 {[%emt 0:00:13]} f6 {[%emt 0:00:04]} 14. Rhf1 {[%emt 0:00:15]} Rf7 {[%emt 0:00:09]} 15. g4 {[%emt 0:00:03]} Rc8 {[%emt 0:00:13]} 16. f5 {[%emt 0:00:11]} b4 {[%emt 0:00:26]} 17. axb4 Bxb4 {[%emt 0:00:01]} 18. g5 {[%emt 0:00:15]} exf5 {[%emt 0:00:12]} 19. exf5 {[%emt 0:00:05]} fxg5 {[%emt 0:00:04]} 20. f6 {[%emt 0:00:25]} Ng6 {[%emt 0:00:34]} 21. Bxg6 {[%emt 0:00:23]} hxg6 {[%emt 0:00:02]} 22. Qxg6 {[%emt 0:00:15]} Rxf6 {[%emt 0:00:04]} 23. Qxg5 {[%emt 0:00:07]} Rg6 {[%emt 0:00:21]} 24. Qf4 {[%emt 0:00:09]} a5 {[%emt 0:00:14]} 25. Qf7+ {[%emt 0:00:03]} Kh7 {[%emt 0:00:04]} 26. Rf5 {[%emt 0:00:10]} Rh6 {[%emt 0:00:22]} 27. Bxh6 {[%emt 0:00:04]} Qxh6+ {[%emt 0:00:03]} 28. Kb1 {[%emt 0:00:03]} Bxc3 {[%emt 0:00:20]} 29. Rh5 {[%emt 0:00:05]} 1-0

[Event "GER-chW Blitz 2019"]
[Site "Magdeburg"]
[Date "2019.05.25"]
[Round "23.12"]
[White "Osmanodja, Filiz"]
[Black "Michna, Marta"]
[Result "1/2-1/2"]
[ECO "C01"]
[WhiteElo "2260"]
[BlackElo "2355"]
[Annotator "NA"]
[PlyCount "54"]
[EventDate "2019.05.25"]
[EventType "tourn"]
[EventCountry "GER"]
[SourceTitle "playchess.com"]
[Source "ChessBase"]
[SourceQuality "1"]
[TimeControl "180+2"]

1. e4 {[%emt 0:00:00]} e6 {[%emt 0:00:00]} 2. d4 {[%emt 0:00:02]} d5 {[%emt 0:00:00]} 3. exd5 {[%emt 0:00:01]} exd5 {[%emt 0:00:00]} 4. Bd3 {[%emt 0:00:01]} Nc6 {[%emt 0:00:10]} 5. c3 {[%emt 0:00:03]} Bd6 {[%emt 0:00:02]} 6. h3 {[%emt 0:00:16]} Nge7 {[%emt 0:00:03]} 7. Ne2 {[%emt 0:00:05]} h6 {[%emt 0:00:19]} 8. Nf4 {[%emt 0:00:16]} O-O {[%emt 0:00:57]} 9. O-O {[%emt 0:00:01]} Bxf4 {[%emt 0:00:33]} 10. Bxf4 {[%emt 0:00:01]} Bf5 {[%emt 0:00:05]} 11. Bxf5 {[%emt 0:00:16]} Nxf5 {[%emt 0:00:01]} 12. Qg4 {[%emt 0:00:08]} Nce7 {[%emt 0:00:12]} 13. Nd2 {[%emt 0:00:05]} c6 {[%emt 0:00:10]} 14. Rae1 {[%emt 0:00:02]} Re8 {[%emt 0:00:01]} 15. Be5 {[%emt 0:00:28]} Qc8 {[%emt 0:00:13]} 16. Nf3 {[%emt 0:00:47]} Ng6 {[%emt 0:00:01]} 17. Bh2 {[%emt 0:00:04]} Qd7 {[%emt 0:00:20]} 18. Ne5 {[%emt 0:00:06]} Nxe5 {[%emt 0:00:01]} 19. Bxe5 {[%emt 0:00:04]} Rad8 {[%emt 0:00:13]} 20. Re3 {[%emt 0:00:25]} g6 {[%emt 0:00:01]} 21. Rf3 {[%emt 0:00:05]} Kh7 {[%emt 0:00:13]} 22. Bf6 {[%emt 0:00:08]} Rc8 {[%emt 0:00:01]} 23. h4 Re4 24. Rf4 {[%emt 0:00:10]} Rxf4 {[%emt 0:00:03]} 25. Qxf4 {[%emt 0:00:01]} Re8 {[%emt 0:00:00]} 26. g4 {[%emt 0:00:04]} Nd6 27. Be5 {[%emt 0:00:03]} Nc4 {[%emt 0:00:02]} 1/2-1/2